fUSD/lending_fUSD_20250115
["ID","MTS","AMOUNT","RATE_DAILY","PERIOD"]
[349021655,1736940648832,-500.0,0.00020999,2]
[349021656,1736940648841,-500.0,0.00020999,2]
[349021657,1736940648850,-500.0,0.00020999,2]
[349021658,1736940648860,-500.0,0.00020999,2]
[349021659,1736940648870,-500.0,0.00020999,2]
[349021660,1736940648880,-500.0,0.00020999,2]
[349021661,1736940648889,-98.32284043,0.00020999,2]
[349021662,1736940648910,-401.67715957,0.00020999,2]
[349021663,1736940648919,-309.50474465,0.00020999,2]
[349021664,1736940648931,-190.49525535,0.00020999,2]
[349021665,1736940648942,-500.0,0.00020999,2]
[349021666,1736940648951,-500.0,0.00020999,2]
[349021667,1736940648960,-500.0,0.00020999,2]
[349021668,1736940648970,-500.0,0.00020999,2]
[349021669,1736940648980,-623.96186738,0.00020999,2]
[349021670,1736940648990,-500.0,0.00020999,2]
[349021671,1736940648999,-500.0,0.00020999,2]
[349021672,1736940649008,-500.0,0.00020999,2]
[349021673,1736940649019,-500.0,0.00020999,2]
[349021674,1736940649028,-500.0,0.00020999,2]
[349021675,1736940649038,-500.0,0.00020999,2]
[349021676,1736940649047,-500.0,0.00020999,2]
[349021677,1736940649057,-500.0,0.00020999,2]
[349021678,1736940649066,-500.0,0.00020999,2]
[349021679,1736940649077,-500.0,0.00020999,2]
[349021680,1736940649086,-500.0,0.00020999,2]
[349021681,1736940649096,-500.0,0.00020999,2]
[349021682,1736940649105,-109.88202872,0.00020999,2]
[349021683,1736940883023,179.13,0.00015417,120]
[349021688,1736941831850,-274.03799915,0.00010137,2]
[349021689,1736941832026,-108.65200085,0.00010137,2]
[349021690,1736941832037,-187.19,0.00012329,2]
[349021691,1736941832047,-313.25,0.00013306,2]
[349021692,1736941832057,-23711.859906,0.00014764,2]
[349021693,1736941832066,-434.93,0.00014839,2]
[349021694,1736941832076,-484.937,0.00014886,2]
[349021695,1736941832086,-28.67757312,0.00014899,2]
[349021696,1736941832101,-8015.54012688,0.00014899,2]
[349021697,1736941832115,-1633.403428,0.000149,2]
[349021698,1736941832124,-785.6598,0.000149,2]
[349021699,1736941832134,-166.31,0.00014915,2]
[349021700,1736941832144,-1722.53904675,0.00014955,2]
[349021701,1736941832155,-3445.82924119,0.00014956,2]
[349021702,1736941832164,-1976.18502293,0.00014956,2]
[349021703,1736941832174,-200.0,0.00014957,2]
[349021704,1736941832187,-1722.53904675,0.00014963,2]
[349021705,1736941832197,-1976.18502293,0.00014965,2]
[349021706,1736941832206,-3445.82924119,0.00014965,2]
[349021707,1736941832215,-1722.53904675,0.00014965,2]
[349021709,1736941832224,-3445.82924119,0.00014966,2]
[349021711,1736941832233,-16378.06097707,0.00014967,2]
[349021713,1736941832243,-1722.53904675,0.00014969,2]
[349021715,1736941832252,-3445.82924119,0.00014972,2]
[349021717,1736941832262,-2028.15718735,0.00014975,2]
[349021720,1736941832284,-831.532,0.00014975,2]
[349021722,1736941832295,-503.60240187,0.00014975,2]
[349021724,1736941832306,-1727.4936,0.00014975,2]
[349021726,1736941832317,-1209.10423545,0.00014975,2]
[349021798,1736941837531,-9125.0119786,0.00014975,2]
[349021799,1736941837544,-482.715,0.00014975,2]
[349021800,1736941837576,-470.4445738,0.00014975,2]
[349021801,1736941837586,-16378.06097707,0.00014975,2]
[349021802,1736941837595,-1976.18502293,0.00014975,2]
[349021803,1736941837604,-11637.48942621,0.00014976,2]
[349021804,1736941837634,-477.93029546,0.00014976,2]
[349021805,1736941837673,-4262.6412554,0.00014976,2]
[349021806,1736941837683,-806.0565766,0.00014978,2]
[349021807,1736941837693,-916.48247015,0.00014978,2]
[349021808,1736941837701,-1976.18502293,0.00014978,2]
[349021809,1736941837710,-3621.74250692,0.00014982,2]
[349021810,1736941837721,-385.55744706,0.00014982,2]
[349021811,1736941837732,-483.655,0.00014982,2]
[349021812,1736941837743,-750.17897989,0.00014982,2]
[349021813,1736941837770,-11136.9270432,0.00014982,2]
[349021814,1736941837779,-3445.82924119,0.00014984,2]
[349021815,1736941837791,-1722.53904675,0.00014986,2]
[349021816,1736941837801,-200.0,0.00014987,2]
[349021817,1736941837810,-1976.18502293,0.00014989,2]
[349021818,1736941837819,-1976.18502293,0.00014993,2]
[349021819,1736941837829,-283.95,0.00014994,2]
[349021820,1736941837839,-16378.06097707,0.00014999,2]
[349021821,1736941837848,-3445.82924119,0.00015,2]
[349021822,1736941837857,-786.12725101,0.00015,3]
[349021823,1736941837867,-14978.27,0.00015256,2]
[349021824,1736941837877,-160.9,0.00015284,2]
[349021825,1736941837887,-250.0,0.00015302,2]
[349021826,1736941837897,-247.57,0.00015322,2]
[349021827,1736941837906,-200.0,0.00015364,2]
[349021828,1736941837916,-232.83,0.00015364,2]
[349021829,1736941837925,-250.0,0.00015423,2]
[349021831,1736941837935,-250.0,0.00015547,2]
[349021833,1736941837944,-313.25,0.0001557,2]
[349021835,1736941837953,-1633.40342782,0.00015624,2]
[349021837,1736941837962,-200.0,0.00015638,2]
[349021838,1736941837972,-2289.416,0.0001627,2]
[349021841,1736941837981,-200.0,0.00016275,2]
[349021843,1736941837991,-1633.40342782,0.00016348,2]
[349021845,1736941838001,-300.0,0.00016605,2]
[349021846,1736941838010,-434.93,0.00016694,2]
[349021849,1736941838019,-175.88,0.00016712,2]
[349021851,1736941838029,-382.69,0.00016813,2]
[349021852,1736941838039,-283.95,0.00016868,2]
[349021854,1736941838048,-1633.40342782,0.00017072,2]
[349021856,1736941838057,-1633.40342782,0.00017797,2]
[349021858,1736941838066,-313.25,0.00017834,2]
[349021860,1736941838075,-179.99984883,0.000179,2]
[349021862,1736941838085,-179.99984874,0.000179,2]
[349021864,1736941838094,-179.99984874,0.000179,2]
[349021866,1736941838103,-179.99984874,0.000179,2]
[349021868,1736941838117,-179.99984874,0.000179,2]
[349021870,1736941838126,-179.99984874,0.000179,2]
[349021872,1736941838135,-179.99984874,0.000179,2]
[349021874,1736941838147,-179.99984874,0.000179,2]
[349021876,1736941838158,-179.99984874,0.000179,2]
[349021878,1736941838168,-718.55976069,0.0001797,2]
[349021880,1736941838178,-300.0,0.00017975,2]
[349021882,1736941838189,-753.37,0.00018,2]
[349021884,1736941838198,-2000.0,0.00018082,2]
[349021885,1736941838207,-500.0,0.00018164,2]
[349021887,1736941838216,-500.0,0.00018164,2]
[349021890,1736941838226,-179.99984874,0.00018208,2]
[349021891,1736941838235,-1633.40342782,0.00018521,2]
[349021893,1736941838244,-1162.81,0.00018533,2]
[349021895,1736941838255,-150.99,0.00018533,2]
[349021897,1736941838264,-1959.91,0.00018533,2]
[349021900,1736941838274,-153.0,0.00018549,2]
[349021901,1736941838284,-153.0,0.00018549,2]
[349021903,1736941838293,-153.0,0.00018549,2]
[349021905,1736941838302,-153.0,0.00018549,2]
[349021907,1736941838314,-153.0,0.00018549,2]
[349021909,1736941838324,-153.0,0.00018549,2]
[349021912,1736941838333,-153.0,0.00018549,2]
[349021913,1736941838344,-153.0,0.00018549,2]
[349021915,1736941838353,-153.0,0.00018549,2]
[349021918,1736941838363,-153.0,0.00018549,2]
[349021919,1736941838372,-153.0,0.00018549,2]
[349021921,1736941838382,-153.0,0.00018549,2]
[349021923,1736941838391,-153.0,0.00018549,2]
[349021925,1736941838400,-153.0,0.00018549,2]
[349021927,1736941838409,-153.0,0.00018549,2]
[349021929,1736941838418,-153.0,0.00018549,2]
[349021931,1736941838427,-153.0,0.00018549,2]
[349021933,1736941838436,-153.0,0.00018549,2]
[349021935,1736941838446,-153.0,0.00018549,2]
[349021937,1736941838455,-153.0,0.00018549,2]
[349021939,1736941838464,-153.0,0.00018549,2]
[349021941,1736941838474,-153.0,0.00018549,2]
[349021943,1736941838483,-153.0,0.00018549,2]
[349021945,1736941838492,-153.0,0.00018549,2]
[349021947,1736941838501,-153.0,0.00018549,2]
[349021949,1736941838510,-153.0,0.00018549,2]
[349021951,1736941838519,-153.0,0.00018549,2]
[349021952,1736941838528,-153.0,0.00018549,2]
[349021953,1736941838537,-153.0,0.00018549,2]
[349021954,1736941838547,-153.0,0.00018549,2]
[349021955,1736941838556,-153.0,0.00018549,2]
[349021956,1736941838566,-153.0,0.00018549,2]
[349021957,1736941838575,-153.0,0.00018549,2]
[349021958,1736941838584,-153.0,0.00018549,2]
[349021959,1736941838593,-153.0,0.00018549,2]
[349021960,1736941838602,-153.0,0.00018549,2]
[349021961,1736941838611,-153.0,0.00018549,2]
[349021962,1736941838620,-153.0,0.00018549,2]
[349021963,1736941838630,-153.0,0.00018549,2]
[349021964,1736941838638,-153.0,0.00018549,2]
[349021965,1736941838647,-153.0,0.00018549,2]
[349021966,1736941838657,-153.0,0.00018549,2]
[349021967,1736941838666,-153.0,0.00018549,2]
[349021968,1736941838675,-153.0,0.00018549,2]
[349021969,1736941838684,-153.0,0.00018549,2]
[349021970,1736941838693,-153.0,0.00018549,2]
[349021971,1736941838702,-153.0,0.00018549,2]
[349021972,1736941838711,-153.0,0.00018549,2]
[349021973,1736941838720,-153.0,0.00018549,2]
[349021974,1736941838730,-153.0,0.00018549,2]
[349021975,1736941838739,-153.0,0.00018549,2]
[349021976,1736941838748,-153.0,0.00018549,2]
[349021977,1736941838757,-153.0,0.00018549,2]
[349021978,1736941838767,-153.0,0.00018549,2]
[349021979,1736941838776,-153.0,0.00018549,2]
[349021980,1736941838786,-153.0,0.00018549,2]
[349021981,1736941838795,-153.0,0.00018549,2]
[349021982,1736941838804,-153.0,0.00018549,2]
[349021983,1736941838814,-153.0,0.00018549,2]
[349021984,1736941838824,-153.0,0.00018549,2]
[349021985,1736941838833,-153.0,0.00018549,2]
[349021986,1736941838842,-153.0,0.00018549,2]
[349021987,1736941838851,-153.0,0.00018549,2]
[349021988,1736941838861,-153.0,0.00018549,2]
[349021989,1736941838870,-153.0,0.00018549,2]
[349021990,1736941838881,-153.0,0.00018549,2]
[349021991,1736941838890,-153.0,0.00018549,2]
[349021992,1736941838899,-153.0,0.00018549,2]
[349021993,1736941838908,-153.0,0.00018549,2]
[349021994,1736941838917,-153.0,0.00018549,2]
[349021995,1736941838927,-153.0,0.00018549,2]
[349021996,1736941838936,-153.0,0.00018549,2]
[349021997,1736941838945,-153.0,0.00018549,2]
[349021998,1736941838955,-153.0,0.00018549,2]
[349021999,1736941838963,-153.0,0.00018549,2]
[349022000,1736941838972,-153.0,0.00018549,2]
[349022001,1736941838982,-153.0,0.00018549,2]
[349022002,1736941839168,-153.0,0.00018549,2]
[349022003,1736941839177,-153.0,0.00018549,2]
[349022004,1736941839187,-153.0,0.00018549,2]
[349022005,1736941839196,-153.0,0.00018549,2]
[349022006,1736941839206,-153.0,0.00018549,2]
[349022007,1736941839216,-153.0,0.00018549,2]
[349022008,1736941839225,-153.0,0.00018549,2]
[349022009,1736941839235,-153.0,0.00018549,2]
[349022010,1736941839244,-153.0,0.00018549,2]
[349022011,1736941839253,-153.0,0.00018549,2]
[349022012,1736941839262,-153.0,0.00018549,2]
[349022013,1736941839272,-153.0,0.00018549,2]
[349022014,1736941839281,-153.0,0.00018549,2]
[349022015,1736941839292,-153.0,0.00018549,2]
[349022016,1736941839301,-153.0,0.00018549,2]
[349022017,1736941839310,-153.0,0.00018549,2]
[349022018,1736941839320,-153.0,0.00018549,2]
[349022019,1736941839330,-153.0,0.00018549,2]
[349022020,1736941839340,-434.93,0.00018549,2]
[349022021,1736941839349,-179.99984874,0.00018577,2]
[349022022,1736941839359,-283.95,0.00018743,2]
[349022023,1736941839368,-2000.0,0.00018751,2]
[349022024,1736941839378,-700.0,0.0001877,2]
[349022025,1736941839387,-179.99984874,0.00018946,2]
[349022026,1736941839398,-4936.22,0.00019053,2]
[349022027,1736941839407,-500.0,0.00019115,2]
[349022028,1736941839416,-500.0,0.00019115,2]
[349022029,1736941839427,-500.0,0.00019115,2]
[349022030,1736941839436,-24850.0,0.00019116,2]
[349022031,1736941839447,-4540.33,0.0001913,2]
[349022032,1736941839456,-150.0,0.00019138,2]
[349022033,1736941839466,-150.0,0.00019178,2]
[349022034,1736941839476,-1633.40342782,0.00019245,2]
[349022035,1736941839485,-4852.33,0.00019297,2]
[349022036,1736941839495,-168.92,0.00019309,2]
[349022037,1736941839504,-179.99984874,0.00019315,2]
[349022038,1736941839514,-500.0,0.00019319,2]
[349022039,1736941839524,-5000.0,0.00019319,2]
[349022040,1736941839535,-3540.1823469,0.00019319,2]
[349022041,1736941839544,-500.0,0.00019319,2]
[349022042,1736941839554,-500.0,0.00019319,2]
[349022043,1736941839563,-500.0,0.00019319,2]
[349022044,1736941839572,-500.0,0.00019319,2]
[349022045,1736941839581,-500.0,0.00019319,2]
[349022046,1736941839590,-500.0,0.00019319,2]
[349022047,1736941839599,-500.0,0.00019319,2]
[349022048,1736941839609,-500.0,0.00019319,2]
[349022049,1736941839618,-500.0,0.00019319,2]
[349022050,1736941839627,-500.0,0.00019319,2]
[349022051,1736941839637,-500.0,0.00019319,2]
[349022052,1736941839646,-500.0,0.00019319,2]
[349022053,1736941839655,-500.0,0.00019319,2]
[349022054,1736941839665,-500.0,0.00019319,2]
[349022055,1736941839674,-500.0,0.00019319,2]
[349022056,1736941839684,-500.0,0.00019319,2]
[349022057,1736941839693,-500.0,0.00019319,2]
[349022058,1736941839703,-279.2727,0.0001932,2]
[349022059,1736941839712,-56475.8267,0.0001932,2]
[349022060,1736941839723,-500.0,0.00019389,2]
[349022061,1736941839732,-500.0,0.00019389,2]
[349022062,1736941839742,-500.0,0.00019389,2]
[349022063,1736941839754,-2353.45,0.00019399,2]
[349022064,1736941839763,-150.0,0.00019401,2]
[349022065,1736941839773,-500.0,0.00019418,2]
[349022066,1736941839783,-500.0,0.00019418,2]
[349022067,1736941839793,-500.0,0.00019418,2]
[349022068,1736941839802,-168.4553321,0.00019418,2]
[349022069,1736941839812,-500.0,0.00019418,2]
[349022070,1736941839821,-500.0,0.00019418,2]
[349022071,1736941839831,-500.0,0.00019418,2]
[349022072,1736941839839,-500.0,0.00019418,2]
[349022073,1736941839849,-500.0,0.00019418,2]
[349022074,1736941839858,-500.0,0.00019418,2]
[349022075,1736941839867,-500.0,0.00019418,2]
[349022076,1736941839877,-500.0,0.00019418,2]
[349022077,1736941839887,-500.0,0.00019418,2]
[349022078,1736941839896,-500.0,0.00019418,2]
[349022079,1736941839905,-500.0,0.00019418,2]
[349022080,1736941839914,-500.0,0.00019418,2]
[349022081,1736941839923,-500.0,0.00019418,2]
[349022082,1736941839932,-501.30914349,0.00019418,2]
[349022083,1736941839942,-500.0,0.00019418,2]
[349022084,1736941839951,-500.0,0.00019418,2]
[349022085,1736941839960,-550.17754865,0.00019418,2]
[349022086,1736941839969,-502.78554275,0.00019418,2]
[349022087,1736941839978,-504.32868547,0.00019418,2]
[349022088,1736941839987,-500.0,0.00019418,2]
[349022089,1736941840001,-503.59484122,0.00019418,2]
[349022090,1736941840010,-500.0,0.00019418,2]
[349022091,1736941840019,-500.0,0.00019418,2]
[349022092,1736941840029,-500.0,0.00019418,2]
[349022093,1736941840041,-500.0,0.00019418,2]
[349022094,1736941840051,-500.0,0.00019418,2]
[349022095,1736941840060,-496.04451593,0.00019418,2]
[349022096,1736941840070,-500.0,0.00019418,2]
[349022097,1736941840079,-500.77558763,0.00019418,2]
[349022098,1736941840088,-500.0,0.00019418,2]
[349022099,1736941840097,-500.0,0.00019418,2]
[349022100,1736941840106,-500.0,0.00019418,2]
[349022101,1736941840119,-500.0,0.00019418,2]
[349022102,1736941840130,-500.0,0.00019418,2]
[349022103,1736941840140,-500.0,0.00019418,2]
[349022104,1736941840149,-500.0,0.00019418,2]
[349022105,1736941840160,-500.0,0.00019418,2]
[349022106,1736941840169,-500.0,0.00019418,2]
[349022107,1736941840179,-500.0,0.00019418,2]
[349022108,1736941840189,-500.0,0.00019418,2]
[349022109,1736941840198,-500.0,0.00019418,2]
[349022110,1736941840207,-500.0,0.00019418,2]
[349022111,1736941840217,-502.19219473,0.00019418,2]
[349022112,1736941840226,-500.0,0.00019418,2]
[349022113,1736941840236,-500.0,0.00019418,2]
[349022114,1736941840246,-500.0,0.00019418,2]
[349022115,1736941840256,-502.4297246,0.00019418,2]
[349022116,1736941840266,-500.0,0.00019418,2]
[349022117,1736941840276,-500.0,0.00019418,2]
[349022119,1736941840286,-500.0,0.00019418,2]
[349022121,1736941840295,-500.0,0.00019418,2]
[349022122,1736941840305,-500.0,0.00019418,2]
[349022123,1736941840314,-355.97426804,0.00019418,2]
[349022124,1736941840323,-500.0,0.00019418,2]
[349022125,1736941840332,-500.0,0.00019418,2]
[349022126,1736941840342,-266.96514489,0.00019418,2]
[349022127,1736941840351,-501.59064798,0.00019418,2]
[349022128,1736941840361,-501.30954926,0.00019418,2]
[349022129,1736941840370,-500.0,0.00019418,2]
[349022130,1736941840379,-500.0,0.00019418,2]
[349022131,1736941840388,-500.0,0.00019418,2]
[349022132,1736941840398,-479.05204526,0.00019418,2]
[349022133,1736941840407,-501.465658,0.00019418,2]
[349022134,1736941840417,-500.0,0.00019418,2]
[349022135,1736941840427,-500.0,0.00019418,2]
[349022136,1736941840437,-503.60797248,0.00019418,2]
[349022137,1736941840446,-506.13785303,0.00019418,2]
[349022138,1736941840455,-436.1686531,0.00019418,2]
[349022139,1736941840464,-522.995791,0.00019418,2]
[349022140,1736941840474,-500.0,0.00019418,2]
[349022141,1736941840483,-410.73347924,0.00019418,2]
[349022142,1736941840492,-545.59,0.00019418,2]
[349022143,1736941840501,-500.0,0.00019418,2]
[349022144,1736941840510,-500.0,0.00019418,2]
[349022145,1736941840520,-500.0,0.00019418,2]
[349022146,1736941840529,-500.0,0.00019418,2]
[349022147,1736941840539,-500.0,0.00019418,2]
[349022148,1736941840548,-500.0,0.00019418,2]
[349022149,1736941840558,-500.0,0.00019418,2]
[349022150,1736941840567,-500.0,0.00019418,2]
[349022151,1736941840576,-500.0,0.00019418,2]
[349022152,1736941840586,-500.0,0.00019418,2]
[349022153,1736941840595,-500.0,0.00019418,2]
[349022154,1736941840603,-500.0,0.00019418,2]
[349022155,1736941840612,-500.0,0.00019418,2]
[349022156,1736941840621,-500.0,0.00019418,2]
[349022157,1736941840630,-500.0,0.00019418,2]
[349022158,1736941840639,-500.0,0.00019418,2]
[349022159,1736941840649,-500.0,0.00019418,2]
[349022160,1736941840658,-500.0,0.00019418,2]
[349022161,1736941840667,-500.0,0.00019418,2]
[349022162,1736941840676,-500.0,0.00019418,2]
[349022163,1736941840685,-500.0,0.00019418,2]
[349022164,1736941840694,-500.0,0.00019418,2]
[349022165,1736941840703,-500.0,0.00019418,2]
[349022166,1736941840712,-500.0,0.00019418,2]
[349022167,1736941840721,-500.0,0.00019418,2]
[349022168,1736941840730,-500.0,0.00019418,2]
[349022169,1736941840739,-500.0,0.00019418,2]
[349022170,1736941840748,-500.0,0.00019418,2]
[349022171,1736941840757,-500.0,0.00019418,2]
[349022172,1736941840767,-500.0,0.00019418,2]
[349022173,1736941840776,-212.17182,0.00019418,2]
[349022174,1736941840786,-500.0,0.00019418,2]
[349022175,1736941840795,-500.0,0.00019418,2]
[349022176,1736941840804,-500.0,0.00019418,2]
[349022177,1736941840813,-500.0,0.00019418,2]
[349022178,1736941840822,-500.0,0.00019418,2]
[349022179,1736941840831,-500.0,0.00019418,2]
[349022180,1736941840840,-500.0,0.00019418,2]
[349022181,1736941840850,-500.0,0.00019418,2]
[349022182,1736941840859,-500.0,0.00019418,2]
[349022183,1736941840868,-500.0,0.00019418,2]
[349022184,1736941840878,-500.0,0.00019418,2]
[349022185,1736941840887,-500.0,0.00019418,2]
[349022186,1736941840896,-500.0,0.00019418,2]
[349022187,1736941840905,-503.96242966,0.00019418,2]
[349022188,1736941840914,-500.0,0.00019418,2]
[349022189,1736941840923,-500.0,0.00019418,2]
[349022190,1736941840934,-500.0,0.00019418,2]
[349022191,1736941840945,-500.0,0.00019418,2]
[349022192,1736941840954,-500.0,0.00019418,2]
[349022193,1736941840963,-500.0,0.00019418,2]
[349022194,1736941840972,-500.0,0.00019418,2]
[349022195,1736941840981,-500.0,0.00019418,2]
[349022196,1736941840991,-500.0,0.00019418,2]
[349022197,1736941841000,-399.98826548,0.00019418,2]
[349022198,1736941841010,-500.0,0.00019418,2]
[349022199,1736941841019,-500.0,0.00019418,2]
[349022200,1736941841029,-500.0,0.00019418,2]
[349022201,1736941841039,-500.0,0.00019418,2]
[349022202,1736941841050,-500.0,0.00019418,2]
[349022203,1736941841062,-500.0,0.00019418,2]
[349022204,1736941841074,-500.0,0.00019418,2]
[349022205,1736941841085,-500.0,0.00019418,2]
[349022206,1736941841097,-500.0,0.00019418,2]
[349022207,1736941841107,-500.0,0.00019418,2]
[349022208,1736941841121,-500.0,0.00019418,2]
[349022209,1736941841131,-500.0,0.00019418,2]
[349022210,1736941841142,-177.61565417,0.00019418,2]
[349022211,1736941841154,-500.0,0.00019419,2]
[349022212,1736941841165,-501.55883974,0.00019419,2]
[349022213,1736941841177,-500.0,0.00019419,2]
[349022214,1736941841188,-500.0,0.00019419,2]
[349022215,1736941841199,-500.0,0.00019419,2]
[349022216,1736941841210,-500.0,0.00019419,2]
[349022217,1736941841221,-500.0,0.00019419,2]
[349022218,1736941841233,-500.0,0.00019419,2]
[349022219,1736941841244,-500.0,0.00019419,2]
[349022220,1736941841255,-500.0,0.00019419,2]
[349022221,1736941841265,-500.0,0.00019419,2]
[349022222,1736941841277,-500.0,0.00019419,2]
[349022223,1736941841287,-500.0,0.00019419,2]
[349022224,1736941841297,-500.0,0.00019419,2]
[349022225,1736941841306,-500.0,0.00019419,2]
[349022226,1736941841318,-500.0,0.00019419,2]
[349022227,1736941841329,-500.0,0.00019419,2]
[349022228,1736941841341,-500.0,0.00019419,2]
[349022229,1736941841353,-500.0,0.00019419,2]
[349022230,1736941841364,-500.0,0.00019419,2]
[349022231,1736941841375,-504.695144,0.00019419,2]
[349022232,1736941841387,-500.0,0.00019419,2]
[349022233,1736941841398,-500.0,0.00019419,2]
[349022234,1736941841409,-500.0,0.00019419,2]
[349022235,1736941841421,-500.0,0.00019419,2]
[349022236,1736941841432,-500.0,0.00019419,2]
[349022237,1736941841445,-500.0,0.00019419,2]
[349022238,1736941841455,-500.0,0.00019419,2]
[349022239,1736941841467,-500.0,0.00019419,2]
[349022240,1736941841480,-500.0,0.00019419,2]
[349022241,1736941841490,-500.0,0.00019419,2]
[349022242,1736941841502,-500.0,0.00019419,2]
[349022243,1736941841513,-500.0,0.00019419,2]
[349022244,1736941841524,-503.7986501,0.00019419,2]
[349022245,1736941841537,-500.0,0.00019419,2]
[349022246,1736941841548,-500.0,0.00019419,2]
[349022247,1736941841559,-500.0,0.00019419,2]
[349022248,1736941841570,-500.0,0.00019419,2]
[349022249,1736941841581,-500.0,0.00019419,2]
[349022250,1736941841592,-416.79310862,0.00019419,2]
[349022251,1736941841604,-500.0,0.00019419,2]
[349022252,1736941841616,-500.0,0.00019419,2]
[349022253,1736941841627,-500.0,0.00019419,2]
[349022254,1736941841638,-500.0,0.00019419,2]
[349022255,1736941841649,-500.0,0.00019419,2]
[349022256,1736941841660,-500.0,0.00019419,2]
[349022257,1736941841670,-500.0,0.00019419,2]
[349022258,1736941841680,-500.0,0.00019419,2]
[349022259,1736941841691,-500.0,0.00019419,2]
[349022260,1736941841701,-500.0,0.00019419,2]
[349022261,1736941841712,-500.0,0.00019419,2]
[349022262,1736941841724,-500.0,0.00019419,2]
[349022263,1736941841739,-500.0,0.00019419,2]
[349022264,1736941841751,-500.0,0.00019419,2]
[349022265,1736941841762,-500.0,0.00019419,2]
[349022266,1736941841772,-500.0,0.00019419,2]
[349022267,1736941841782,-500.0,0.00019419,2]
[349022268,1736941841807,-500.0,0.00019419,2]
[349022269,1736941841818,-500.0,0.00019419,2]
[349022270,1736941841829,-500.0,0.00019419,2]
[349022271,1736941841840,-216.7821688,0.00019419,2]
[349022272,1736941841852,-500.0,0.00019419,2]
[349022273,1736941841864,-500.0,0.00019419,2]
[349022274,1736941841875,-500.0,0.00019419,2]
[349022275,1736941841887,-500.0,0.00019419,2]
[349022276,1736941841897,-500.0,0.00019419,2]
[349022277,1736941841908,-500.0,0.00019419,2]
[349022278,1736941841919,-500.0,0.00019419,2]
[349022279,1736941841929,-500.0,0.00019419,2]
[349022280,1736941841940,-500.0,0.00019419,2]
[349022281,1736941841951,-500.0,0.00019419,2]
[349022282,1736941841961,-500.0,0.00019419,2]
[349022283,1736941841972,-500.0,0.00019419,2]
[349022284,1736941841983,-500.0,0.00019419,2]
[349022285,1736941841993,-500.0,0.00019419,2]
[349022286,1736941842005,-500.0,0.00019419,2]
[349022287,1736941842015,-500.0,0.00019419,2]
[349022288,1736941842026,-500.0,0.00019419,2]
[349022289,1736941842037,-500.0,0.00019419,2]
[349022290,1736941842048,-500.0,0.00019419,2]
[349022291,1736941842059,-500.0,0.00019419,2]
[349022292,1736941842069,-500.0,0.00019419,2]
[349022293,1736941842079,-500.0,0.00019419,2]
[349022294,1736941842090,-500.0,0.00019419,2]
[349022295,1736941842101,-500.0,0.00019419,2]
[349022296,1736941842113,-500.0,0.00019419,2]
[349022297,1736941842126,-500.0,0.00019419,2]
[349022298,1736941842136,-500.0,0.00019419,2]
[349022299,1736941842146,-500.0,0.00019419,2]
[349022300,1736941842157,-500.0,0.00019419,2]
[349022301,1736941842168,-500.0,0.00019419,2]